bitfinex-derivatives/quotes_ETHF0:USTF0_20250909
["timestamp","ask_amount","ask_price","bid_price","bid_amount"]
[1757453794694,0.9887,4310.9,4310.1,1.0379]
[1757453794899,0.6297,4310.3,4310.2,2.710918]
[1757453795195,0.8647,4310.3,4310.2,2.710918]
[1757453795395,0.75513114,4310.3,4310.2,2.710918]
[1757453795696,0.9901308,4310.3,4310.2,2.710918]
[1757453796397,0.8647,4310.3,4310.2,2.71038211]
[1757453797494,0.6297,4310.3,4310.2,2.71038211]
[1757453797695,0.8647,4310.3,4310.2,2.71038211]
[1757453797897,0.6297,4310.3,4310.2,2.71038211]
[1757453798093,0.8647,4310.3,4310.2,2.71038211]
[1757453798494,0.6297,4310.3,4310.2,2.71038211]
[1757453798690,0.8647,4310.3,4310.2,2.71038211]
[1757453804304,0.8647,4310.3,4310.2,2.3958]
[1757453810204,0.6297,4310.3,4310.2,2.3958]
[1757453811702,0.235,4310.4,4310.2,2.3958]
[1757453811703,33.427,4311.4,4310.3,0.9825]
[1757453812009,2.0588781,4311.3,4310.3,0.9825]
[1757453812206,2.2089,4311.1,4311.0,0.6228]
[1757453812507,2.8713981,4311.1,4311.0,1.6053]
[1757453812702,2.8713981,4311.1,4311.0,2.2385]
[1757453813108,2.8713981,4311.1,4311.0,2.6233]
[1757453814910,3.1063981,4311.1,4311.0,2.6233]
[1757453815212,2.8713981,4311.1,4311.0,2.6233]
[1757453815505,3.1063981,4311.1,4311.0,2.6233]
[1757453816713,1.2936981,4311.1,4311.0,2.6233]
[1757453817015,0.99067223,4311.1,4311.0,2.6233]
[1757453817205,0.8662,4311.1,4311.0,2.6233]
[1757453819313,2.4439,4311.1,4311.0,2.6233]
[1757453819608,1.5145,4311.1,4311.0,2.6233]
[1757453820314,0.8662,4311.1,4311.0,2.6233]
[1757453820610,34.3564,4311.4,4311.0,2.6233]
[1757453820611,34.3564,4311.4,4311.1,0.9825]
[1757453820811,0.235,4311.3,4311.2,2.2385]
[1757453822210,2.4439,4311.3,4311.2,2.2385]
[1757453822410,2.4439,4311.3,4311.2,1.6053]
[1757453822611,2.4439,4311.3,4311.2,0.9825]
[1757453824810,2.4439,4311.3,4311.2,1.6053]
[1757453826610,2.2089,4311.3,4311.2,1.6053]
[1757453826814,2.4439,4311.3,4311.2,1.6053]
[1757453827418,2.4439,4311.3,4310.5,0.3848]
[1757453827619,2.4439,4311.3,4310.6,0.9825]
[1757453828623,2.4439,4311.3,4311.2,0.6228]
[1757453828820,2.4439,4311.3,4311.2,1.6053]
[1757453834426,2.4439,4311.3,4311.2,1.91960094]
[1757453838125,2.4439,4311.3,4311.2,2.55280094]
[1757453838332,2.56834575,4311.3,4311.2,2.55280094]
[1757453838628,0.99064575,4311.3,4311.2,2.55280094]
[1757453840328,1.53272553,4311.3,4311.2,2.55280094]
[1757453841025,1.53272553,4311.3,4311.2,2.2385]
[1757453841330,1.53272553,4311.3,4311.2,2.55307081]
[1757453841529,1.29772553,4311.3,4311.2,2.55307081]
[1757453841830,0.90152553,4311.3,4311.2,2.55307081]
[1757453842229,1.50692553,4311.3,4311.2,2.55307081]
[1757453845936,1.50692553,4311.3,4311.2,2.55307081]
[1757453846326,1.50692553,4311.3,4311.2,2.55336201]
[1757453847234,2.43982553,4311.3,4311.2,2.55336201]
[1757453850531,2.20482553,4311.3,4311.2,2.55336201]
[1757453850731,1.50692553,4311.3,4311.2,2.55336201]
[1757453852634,1.50692553,4311.3,4311.2,2.55352265]
[1757453855134,1.27192553,4311.3,4311.2,2.55352265]
[1757453855338,1.50692553,4311.3,4311.2,2.55352265]
[1757453855839,1.27192553,4311.3,4311.2,2.55352265]
[1757453856031,1.50692553,4311.3,4311.2,2.55352265]
[1757453859642,1.27192553,4311.3,4311.2,2.55352265]
[1757453859835,1.50692553,4311.3,4311.2,2.55352265]
[1757453860942,2.12962553,4311.3,4311.2,2.55352265]
[1757453863643,2.00517978,4311.3,4311.2,2.55352265]
[1757453863943,2.12985968,4311.3,4311.2,2.55352265]
[1757453864340,2.12985968,4311.3,4311.2,2.2385]
[1757453866637,3.10915968,4311.3,4311.2,2.2385]
[1757453866838,2.12985968,4311.3,4311.2,2.2385]
[1757453867145,3.10915968,4311.3,4311.2,0.9825]
[1757453868744,3.10915968,4311.3,4311.2,1.5782]
[1757453872341,3.10915968,4311.3,4311.2,2.2142]
[1757453880349,3.10915968,4311.3,4311.2,1.5782]
[1757453880548,3.34110969,4311.3,4310.6,0.9833]
[1757453880748,2.2229,4310.7,4310.5,1.3681]
[1757453881045,1.2436,4310.2,4310.1,0.9833]
[1757453881245,0.9793,4311.0,4310.2,0.9833]
[1757453881446,2.4579,4310.9,4310.8,2.215]
[1757453881852,2.58250463,4310.9,4310.8,2.215]
[1757453882744,2.58250463,4310.9,4310.8,1.579]
[1757453883349,2.4579,4310.9,4310.8,1.579]
[1757453885053,2.4579,4310.9,4310.8,1.579]
[1757453885249,6.68987,4310.9,4310.1,1.64980888]
[1757453885454,2.2229,4310.3,4310.2,1.579]
[1757453885755,2.4579,4310.3,4310.2,1.579]
[1757453886355,2.4579,4310.3,4310.2,0.9833]
[1757453887151,2.4579,4310.3,4310.2,1.579]
[1757453888253,2.2229,4310.2,4310.1,0.5957]
[1757453888453,2.2229,4310.2,4310.1,1.579]
[1757453909378,2.2229,4310.2,4309.5,0.4014]
[1757453909575,2.1657,4309.7,4309.6,1.5883]
[1757453909878,2.4007,4309.7,4309.6,1.5883]
[1757453910273,2.4007,4309.7,4309.6,2.2012]
[1757453914481,1.4513,4309.7,4309.6,2.2012]
[1757453914882,2.4007,4309.7,4309.6,2.2012]
[1757453919781,1.4513,4309.7,4309.6,2.2012]
[1757453922090,2.4007,4309.7,4309.6,2.2012]
[1757453930494,1.4513,4309.7,4309.6,2.2012]
[1757453932894,1.2163,4309.7,4309.6,2.2012]
[1757453933097,1.4513,4309.7,4309.6,2.2012]
[1757453936896,2.3573,4309.7,4309.6,2.2012]
[1757453943500,2.1223,4309.7,4309.6,2.2012]
[1757453943798,2.3573,4309.7,4309.6,2.2012]
[1757453945608,3.02704441,4309.7,4309.6,2.2012]
[1757453946203,3.02704441,4309.7,4309.6,0.9628]
[1757453946503,3.02704441,4309.7,4309.1,0.8999]
[1757453946704,2.79474441,4309.6,4309.5,1.5357]
[1757453949407,2.79474441,4309.6,4309.5,2.5245]
[1757453954510,2.79474441,4309.6,4309.5,2.83909605]
[1757453960715,3.02974441,4309.6,4309.5,2.83909605]
[1757453960915,3.02956518,4309.6,4309.5,2.83909605]
[1757453962617,3.02956518,4309.6,4309.5,2.83906202]
[1757453964019,2.48454778,4309.6,4309.5,2.83906202]
[1757453964222,3.0287644,4309.6,4309.5,2.83906202]
[1757453965722,2.7937644,4309.6,4309.5,2.83906202]
[1757453966022,3.0287644,4309.6,4309.5,2.83906202]
[1757453968631,2.1227644,4309.6,4309.5,2.83906202]
[1757453969836,1.2637644,4309.6,4309.5,2.83906202]
[1757453970028,0.9037644,4309.6,4309.5,2.83906202]
[1757453970937,1.5093644,4309.6,4309.5,2.83906202]
[1757453973140,1.5093644,4309.6,4309.5,2.83913559]
[1757453974342,3.0346644,4309.6,4309.5,2.83913559]
[1757453979739,2.91011662,4309.6,4309.5,2.83913559]
[1757453979941,3.03485098,4309.6,4309.5,2.83944596]
[1757453984848,3.03485098,4309.6,4309.5,2.47914596]
[1757453990455,3.03485098,4309.6,4309.5,2.82234596]
[1757453992653,3.03485098,4309.6,4309.5,2.47914596]
[1757453998053,3.03485098,4309.6,4309.5,1.85064596]
[1757453998450,3.03485098,4309.6,4309.5,1.85230629]
[1757454000261,2.10975098,4309.6,4309.5,2.80950629]
[1757454000557,7.17709098,4309.6,4309.2,0.8985]
[1757454000859,2.0447,4308.6,4308.5,1.2182]
[1757454001053,2.40343436,4308.6,4308.5,1.2182]
[1757454001247,2.2787,4308.6,4308.5,1.2182]
[1757454001446,2.2787,4308.6,4307.9,1.64980888]
[1757454001661,1.487,4308.0,4307.9,2.86800888]
[1757454001865,1.721,4308.0,4307.9,2.86800888]
[1757454002359,0.234,4308.0,4307.9,1.2182]
[1757454002755,0.234,4308.0,4307.9,2.1167]
[1757454003760,1.487,4308.6,4308.5,1.2182]
[1757454003959,0.158,4308.6,4308.5,2.4599]
[1757454004356,0.8788,4308.9,4308.6,0.8985]
[1757454004560,0.8788,4308.9,4308.8,2.1167]
[1757454004757,1.1128,4308.9,4308.8,2.1167]
[1757454005362,1.721,4308.9,4308.8,2.1167]
[1757454010454,1.487,4308.9,4308.8,2.1167]
[1757454010655,1.721,4308.9,4308.8,2.1167]
[1757454010869,1.487,4308.9,4308.8,2.1167]
[1757454011166,0.234,4308.9,4308.8,2.1167]
[1757454011359,0.8788,4309.4,4308.9,0.8985]
[1757454011558,2.94496465,4309.3,4309.2,2.1167]
[1757454011759,2.71096465,4309.3,4309.2,2.1167]
[1757454011966,2.94496465,4309.3,4309.2,2.1167]
[1757454012467,2.71096465,4309.3,4309.2,2.1167]
[1757454012667,2.94496327,4309.3,4309.2,2.1167]
[1757454013467,2.71096327,4309.3,4309.2,2.1167]
[1757454013658,2.94496327,4309.3,4309.2,2.1167]
[1757454027773,2.94496327,4309.3,4309.2,0.6042]
[1757454031976,2.94496327,4309.3,4309.0,0.827]
[1757454032169,2.0715,4309.1,4309.0,1.4334]
[1757454032470,2.97176327,4309.1,4309.0,1.4334]
[1757454035773,2.97176327,4309.1,4309.0,2.02]
[1757454037072,2.84899794,4309.1,4309.0,2.02]
[1757454037266,2.97199551,4309.1,4309.0,2.02]
[1757454042278,2.73799551,4309.1,4309.0,2.02]
[1757454042478,2.97199551,4309.1,4309.0,2.02]
[1757454043280,2.97201024,4309.1,4309.0,2.02]
[1757454050487,2.97202515,4309.1,4309.0,2.02]
[1757454058201,2.9720296,4309.1,4309.0,2.02]
[1757454070809,2.9723974,4309.1,4309.0,2.02]
[1757454072108,2.97239123,4309.1,4309.0,2.02]
[1757454079512,2.84936574,4309.1,4309.0,2.02]
[1757454079811,2.97240131,4309.1,4309.0,2.02]
[1757454084117,2.84936574,4309.1,4309.0,2.02]
[1757454085520,2.9723992,4309.1,4309.0,2.02]
[1757454086222,2.84936574,4309.1,4309.0,2.02]
[1757454090924,2.97239825,4309.1,4309.0,2.02]
[1757454092227,2.73839825,4309.1,4309.0,2.02]
[1757454092428,2.97239825,4309.1,4309.0,2.02]
[1757454095024,2.97239825,4309.1,4308.5,0.3432]
[1757454095325,2.3164,4308.5,4308.4,1.3863]
[1757454095629,2.5504,4308.5,4308.4,1.3863]
[1757454096227,2.5504,4308.5,4308.4,1.9398]
[1757454109338,2.5504,4308.5,4308.3,1.64980888]
[1757454109541,0.7848,4308.3,4308.2,1.64980888]
[1757454109734,2.0913,4308.3,4308.2,3.04630888]
[1757454110133,2.0913,4308.3,4308.2,3.61090888]
[1757454121750,2.0913,4308.3,4308.2,2.77290888]
[1757454122055,1.8573,4307.6,4307.5,0.5585]
[1757454122254,2.0913,4307.6,4307.5,0.5585]
[1757454122954,0.5311,4306.8,4306.7,1.9611]
[1757454123152,1.5499,4306.8,4306.7,1.9611]
[1757454123550,0.234,4306.8,4306.7,1.9611]
[1757454126964,1.0188,4306.8,4306.7,1.9611]
[1757454132465,1.5499,4306.8,4306.7,1.9611]
[1757454136263,2.0913,4306.8,4306.7,1.9611]
[1757454137859,2.0913,4306.8,4306.7,1.1231]
[1757454138173,2.0913,4306.8,4306.7,1.9573]
[1757454143576,2.0913,4306.8,4306.7,0.5585]
[1757454143776,2.0913,4306.8,4306.7,1.3927]
[1757454147777,2.0913,4306.8,4306.7,1.9138]
[1757454153377,1.8573,4306.8,4306.7,1.9138]
[1757454153582,2.0913,4306.8,4306.7,1.9138]
[1757454155682,2.0913,4306.8,4306.7,0.5585]
[1757454156283,2.0913,4306.8,4306.7,1.3927]
[1757454158089,2.0913,4306.8,4306.7,0.5585]
[1757454158483,2.0913,4306.8,4306.4,0.8342]
[1757454158685,1.4364,4306.5,4306.4,0.5624]
[1757454158989,2.5076,4306.5,4306.4,1.9177]
[1757454159289,2.1692,4306.5,4306.4,1.9177]
[1757454160485,1.9352,4306.5,4306.4,1.9177]
[1757454160691,2.1692,4306.5,4306.4,1.9177]
[1757454161094,2.5076,4306.5,4306.4,1.9177]
[1757454161291,2.5076,4306.5,4306.4,0.5624]
[1757454161889,2.5076,4306.5,4306.4,1.3966]
[1757454162492,2.5076,4306.5,4306.4,1.9177]
[1757454165191,2.5076,4306.5,4306.4,3.58352458]
[1757454165788,2.1692,4306.5,4306.4,3.58352458]
[1757454168298,2.1692,4306.5,4306.4,1.9177]
[1757454169891,2.5062,4306.5,4306.4,1.9177]
[1757454174700,2.5062,4306.5,4306.4,1.8737]
[1757454176700,2.5062,4306.5,4306.4,0.5624]
[1757454177203,2.5062,4306.5,4306.1,0.7902]
[1757454177501,1.835,4306.4,4306.3,0.5292]
[1757454179991,1.0641,4306.4,4305.9,0.7902]
[1757454180196,1.2916,4305.9,4305.8,3.94619896]
[1757454181004,1.835,4305.9,4305.8,3.94619896]
[1757454181395,1.835,4305.9,4305.8,1.8638]
[1757454184403,1.835,4305.9,4305.8,1.0736]
[1757454184609,2.069,4305.9,4305.8,1.0736]
[1757454184905,2.069,4305.9,4305.8,0.5292]
[1757454185099,2.069,4305.9,4305.2,0.234]
[1757454185100,2.069,4305.9,4305.2,2.31639896]
[1757454185303,1.2981,4305.9,4305.8,0.5292]
[1757454185599,2.069,4305.9,4305.8,0.5292]
[1757454185801,2.069,4305.9,4305.3,0.7902]
[1757454187103,1.835,4305.1,4305.0,0.5292]
[1757454187299,1.835,4305.1,4305.0,1.0736]
[1757454187704,1.835,4305.1,4305.0,1.8638]
[1757454188109,1.0641,4304.8,4304.7,1.3194]
[1757454188305,1.835,4304.8,4304.7,0.5292]
[1757454189807,1.835,4304.8,4304.0,0.3063]
[1757454190012,1.835,4304.8,4304.1,1.02252]
[1757454190215,0.5207,4304.3,4304.2,1.8638]
[1757454190517,1.2916,4304.3,4304.2,1.8638]
[1757454191207,1.835,4304.3,4304.2,1.8638]
[1757454194514,1.835,4304.3,4304.2,1.0736]
[1757454194720,1.835,4304.3,4303.6,0.7902]
[1757454195014,1.835,4303.7,4303.3,0.234]
[1757454195221,1.835,4303.7,4303.6,0.5292]
[1757454195520,1.835,4303.7,4303.6,1.3194]
[1757454197132,1.835,4303.7,4303.0,0.5403]
[1757454197433,1.835,4303.7,4303.1,0.7985]
[1757454197729,1.835,4303.7,4303.6,1.321]
[1757454199725,1.835,4303.7,4303.6,1.8538]
[1757454200420,1.835,4303.7,4303.6,1.0553]
[1757454200628,1.835,4303.7,4303.6,0.5225]
[1757454201027,1.835,4303.7,4303.6,1.321]
[1757454201434,1.835,4303.7,4303.0,0.72927504]
[1757454201435,1.835,4303.7,4303.1,0.7985]
[1757454201824,2.069,4303.7,4303.1,0.7985]
[1757454202018,2.069,4303.7,4303.0,0.72927504]
[1757454202019,2.069,4303.7,4303.6,0.5225]
[1757454202635,2.069,4303.7,4303.6,1.321]
[1757454203134,2.069,4303.7,4303.6,0.5225]
[1757454203535,0.7709,4303.7,4303.6,1.8538]
[1757454204123,1.2909,4303.7,4303.6,1.8538]
[1757454206535,1.8166,4303.7,4303.6,1.8538]
[1757454208935,1.8166,4303.7,4303.1,0.7985]
[1757454209637,1.8166,4303.7,4303.6,1.321]
[1757454212944,1.8166,4303.7,4303.6,1.8538]
[1757454213242,1.8166,4303.7,4303.6,0.5225]
[1757454214644,1.8166,4303.7,4303.6,1.8538]
[1757454215037,2.0506,4303.7,4303.6,1.8538]
[1757454217548,1.8166,4303.7,4303.6,1.8538]
[1757454217845,2.0506,4303.7,4303.6,1.8538]
[1757454219143,1.3729,4303.0,4302.9,0.5225]
[1757454219347,2.1853,4303.0,4302.9,0.5225]
[1757454219842,2.1853,4303.0,4302.9,1.8538]
[1757454220944,1.8581,4303.0,4302.9,1.8538]
[1757454225456,1.3324,4303.0,4302.9,1.8538]
[1757454227653,1.8586,4303.0,4302.9,1.8538]
[1757454227859,2.167,4303.0,4302.9,1.8538]
[1757454228258,2.167,4303.0,4302.9,1.0553]
[1757454228459,2.167,4303.0,4302.9,0.5225]
[1757454229258,2.167,4303.0,4302.9,1.2953]
[1757454230756,1.8586,4303.0,4302.9,1.7897]
[1757454233363,1.8586,4303.0,4302.9,1.2953]
[1757454233863,1.8586,4303.0,4302.9,1.7897]
[1757454236374,2.167,4303.0,4302.9,1.7897]
[1757454237673,1.8586,4303.0,4302.9,1.7897]
[1757454240870,0.3272,4303.5,4303.0,1.0993]
[1757454241075,1.651,4303.5,4303.4,1.8115]
[1757454241271,1.3238,4303.5,4303.4,1.8115]
[1757454241473,1.8586,4303.5,4303.4,1.8115]
[1757454241676,2.167,4303.5,4303.4,1.8115]
[1757454245567,1.8586,4303.5,4303.4,1.8115]
[1757454277098,1.3238,4303.5,4303.4,1.8115]
[1757454277300,1.2658,4303.5,4303.4,1.7853]
[1757454278900,1.26463079,4303.5,4303.4,1.7853]
[1757454280497,0.233,4304.3,4303.6,0.7466]
[1757454280992,0.233,4304.4,4303.7,0.7466]
[1757454282396,0.746,4304.3,4303.7,0.7466]
[1757454282894,1.813,4304.3,4304.2,1.2402]
[1757454284198,1.813,4304.3,4304.2,0.7466]
[1757454284501,0.746,4304.2,4303.6,0.7466]
[1757454284703,0.5198,4303.7,4303.6,1.7865]
[1757454284896,1.2658,4304.3,4304.2,0.4936]
[1757454285108,0.746,4304.2,4303.6,0.7466]
[1757454285501,0.5198,4303.7,4303.6,1.7865]
[1757454286804,0.7416,4304.4,4303.7,0.763]
[1757454287108,1.7224,4304.4,4304.3,1.2518]
[1757454287508,1.7224,4304.4,4304.3,0.763]
[1757454289115,1.7224,4304.4,4304.3,1.2518]
[1757454291612,1.7224,4304.4,4304.3,1.7418]
[1757454295611,0.9808,4304.4,4304.3,1.7418]
[1757454296513,1.7224,4304.4,4304.3,1.7418]
[1757454298814,0.7243,4304.6,4304.5,2.0597]
[1757454299207,1.2138,4304.6,4304.5,2.0597]
[1757454299417,1.9554,4304.6,4304.5,2.0597]
[1757454302615,1.7224,4304.6,4304.5,2.0597]
[1757454302910,1.9554,4304.6,4304.5,2.0597]
[1757454303117,0.233,4304.8,4304.5,1.2967]
[1757454303407,0.7243,4304.8,4304.7,1.7418]
[1757454306710,0.00348165,4304.9,4304.7,1.7418]
[1757454306911,0.00348165,4304.9,4304.8,1.7418]
[1757454307316,0.49478165,4304.9,4304.8,1.7418]
[1757454310412,0.00348165,4304.9,4304.8,1.7418]
[1757454320631,0.7071,4306.4,4304.8,0.9788]
[1757454320929,0.7071,4306.2,4305.1,0.717]
[1757454321321,0.23225,4306.1,4305.1,0.717]
[1757454321522,0.7071,4306.2,4305.1,0.717]
[1757454322032,1.694,4306.2,4306.1,1.229]
[1757454323332,1.694,4306.2,4306.1,1.7237]
[1757454325131,1.927,4306.2,4306.1,1.7237]
[1757454326034,1.694,4306.2,4306.1,1.7237]
[1757454326236,1.927,4306.2,4306.1,1.7237]
[1757454329929,1.927,4306.2,4306.1,1.229]
[1757454332736,1.927,4306.2,4306.1,1.7237]
[1757454338131,1.927,4306.2,4305.6,0.717]
[1757454338335,0.2212,4306.0,4305.0,0.2874]
[1757454338636,0.4939,4305.1,4305.0,2.0111]
[1757454338838,1.201,4305.1,4305.0,2.0111]
[1757454339243,0.4939,4305.1,4305.0,2.0111]
[1757454343539,0.7071,4305.3,4305.0,1.2941]
[1757454343740,1.201,4305.3,4305.2,1.0067]
[1757454343940,1.201,4305.3,4305.2,1.7237]
[1757454347135,1.694,4305.3,4305.2,1.229]
[1757454348147,1.694,4305.3,4305.2,1.7073]
[1757454365164,0.9869,4305.3,4305.2,1.7073]
[1757454366462,0.4939,4305.3,4305.2,1.7073]
[1757454382378,0.7532,4305.6,4305.2,0.9903]
[1757454382678,1.2421,4305.6,4305.5,1.9881]
[1757454383183,1.7151,4305.6,4305.5,1.9881]
[1757454417510,0.4889,4305.6,4305.5,1.9881]
[1757454418714,0.7138,4306.2,4305.6,0.6992]
[1757454418906,1.6606,4306.2,4306.1,1.1845]
[1757454419106,2.58343043,4306.2,4306.1,1.1845]
[1757454420311,2.35043043,4306.2,4306.1,1.1845]
[1757454420505,2.58343043,4306.2,4306.1,1.1845]
[1757454422010,2.35043043,4306.2,4306.1,1.1845]
[1757454422204,2.58343043,4306.2,4306.1,1.1845]
[1757454422713,2.35043043,4306.2,4306.1,1.1845]
[1757454422915,2.58343043,4306.2,4306.1,1.1845]
[1757454423213,2.58343043,4306.2,4306.1,1.6483]
[1757454425907,2.58343043,4306.2,4306.1,1.1845]
[1757454426115,2.58343043,4306.2,4305.6,0.6992]
[1757454426312,1.6606,4305.7,4305.6,0.6992]
[1757454426610,1.8936,4305.7,4305.6,1.1845]
[1757454428215,0.2889,4306.5,4305.7,0.6992]
[1757454428416,0.4907,4305.8,4305.7,1.6483]
[1757454429120,1.6606,4305.8,4305.7,1.6483]
[1757454455753,1.6606,4305.8,4305.1,0.7119]
[1757454455955,0.9468,4305.8,4305.1,0.23227]
[1757454456151,1.6647,4305.3,4305.2,0.7119]
[1757454456347,1.6647,4305.3,4304.6,0.7119]
[1757454456549,1.6647,4305.2,4305.1,0.4821]
[1757454456749,1.6647,4305.2,4304.6,0.7119]
[1757454459455,0.7307,4304.6,4304.0,0.2957]
[1757454459654,1.6647,4304.1,4304.0,0.7778]
[1757454459853,1.6647,4304.1,4304.0,0.4821]
[1757454460159,1.6647,4304.1,4304.0,1.194]
[1757454466456,1.6647,4304.1,4304.0,0.7119]
[1757454466654,1.6647,4304.1,4303.6,0.7101]
[1757454467562,0.233,4304.3,4303.5,0.2742]
[1757454467563,0.1059,4304.0,4303.5,0.2742]
[1757454467760,0.9326,4303.8,4303.7,0.7101]
[1757454467959,1.5929,4303.8,4303.1,0.23237]
[1757454468265,1.5929,4303.8,4303.2,0.7101]
[1757454469565,1.82527001,4303.8,4303.2,0.7101]
[1757454469766,1.5929,4303.8,4303.2,0.7101]
[1757454475963,1.82527001,4303.8,4303.2,0.7101]
[1757454476872,1.5929,4303.8,4303.2,0.7101]
[1757454478070,0.462,4303.3,4303.2,1.632]
[1757454480066,0.618,4303.3,4303.2,1.632]
[1757454483572,1.7489,4303.3,4303.2,0.7101]
[1757454484174,1.5929,4303.3,4303.2,0.7101]
[1757454484471,1.7989,4303.3,4303.2,0.7101]
[1757454485271,1.7989,4303.3,4302.9,0.7101]
[1757454485472,1.7989,4303.3,4302.8,0.17662712]
[1757454485871,1.7989,4303.3,4302.9,0.7101]
[1757454486069,1.7989,4303.3,4302.8,0.17662712]
[1757454486269,1.7989,4303.3,4302.9,0.7101]
[1757454489775,1.7989,4303.3,4302.8,0.17662712]
[1757454490075,1.7989,4303.3,4302.9,0.7101]
[1757454490279,1.7989,4303.3,4302.8,0.17662712]
[1757454490579,1.7989,4303.3,4302.9,0.7101]
[1757454490774,1.7989,4303.3,4302.8,0.17662712]
[1757454491178,1.7989,4303.3,4302.9,0.7101]
[1757454491983,0.1059,4304.0,4303.2,0.9219]
[1757454491984,0.6603,4303.9,4303.2,0.9219]
[1757454492177,0.462,4303.4,4303.3,1.632]
[1757454492376,1.1223,4303.4,4303.3,1.632]
[1757454492678,1.7909,4303.4,4303.3,1.632]
[1757454502196,1.92127484,4303.4,4303.3,1.632]
[1757454502689,1.26097484,4303.4,4303.3,1.632]
[1757454503183,1.92127484,4303.4,4303.3,1.632]
[1757454504893,1.72327484,4303.4,4303.3,1.632]
[1757454505191,1.95627484,4303.4,4303.3,1.632]
[1757454505991,1.72327484,4303.4,4303.3,1.632]
[1757454506192,1.8259,4303.4,4303.3,1.632]
[1757454506388,1.95627463,4303.4,4303.3,1.632]
[1757454506894,1.8259,4303.4,4303.3,1.632]
[1757454507290,1.5929,4303.4,4303.3,1.632]
[1757454507491,1.8259,4303.4,4303.3,1.632]
[1757454507687,1.5929,4303.4,4303.3,1.632]
[1757454507894,1.8259,4303.4,4303.3,1.632]
[1757454508096,1.95627288,4303.4,4303.3,1.632]
[1757454510395,1.72327288,4303.4,4303.3,1.632]
[1757454510601,1.95627288,4303.4,4303.3,1.632]
[1757454511999,1.8259,4303.4,4303.3,1.632]
[1757454512200,1.95623806,4303.4,4303.3,1.632]
[1757454514902,1.8259,4303.4,4303.3,1.632]
[1757454515094,1.8259,4303.4,4303.3,0.7101]
[1757454515095,2.51901117,4303.4,4303.3,0.7101]
[1757454515595,2.51901117,4303.4,4303.3,1.1641]
[1757454519604,2.51901117,4303.4,4303.3,0.7101]
[1757454519902,2.51901117,4303.4,4303.0,0.2715]
[1757454520103,1.5721,4303.2,4303.1,1.1118]
[1757454520301,1.70244134,4303.2,4303.1,1.1118]
[1757454522706,1.70236759,4303.2,4303.1,1.1118]
[1757454523607,1.04206759,4303.2,4303.1,1.5452]
[1757454523794,1.70236759,4303.2,4303.1,1.5452]
[1757454526405,1.70235003,4303.2,4303.1,1.5452]
[1757454534824,1.70235003,4303.2,4303.0,0.6797]
[1757454535028,1.5721,4303.2,4303.0,0.6797]
[1757454535524,1.5721,4303.2,4302.9,0.00348598]
[1757454535919,1.5721,4303.2,4303.0,0.6797]
[1757454536325,1.5721,4303.2,4302.9,0.00348598]
[1757454536513,1.5721,4303.2,4303.0,0.6797]
[1757454536712,1.5721,4303.2,4302.9,0.00348598]
[1757454536912,1.5721,4303.2,4303.0,0.6797]
[1757454537128,1.5721,4303.2,4302.9,0.00348598]
[1757454537427,1.5721,4303.2,4303.0,0.6797]
[1757454538124,0.13022651,4303.1,4303.0,0.6797]
[1757454538324,1.67422651,4303.1,4303.0,0.6797]
[1757454539024,1.67422651,4303.1,4303.0,1.1348]
[1757454539620,0.267,4303.0,4302.9,0.00348598]
[1757454539821,2.044,4303.0,4302.9,0.68318598]
[1757454541126,1.777,4303.0,4302.9,0.68318598]
[1757454541529,1.777,4303.0,4302.9,1.13828598]
[1757454542521,1.777,4303.0,4302.9,1.59468598]
[1757454543519,1.777,4303.0,4302.9,1.13828598]
[1757454545528,0.2382,4303.5,4303.1,0.6797]
[1757454545728,1.83601919,4303.4,4303.3,0.4551]
[1757454545929,1.83601919,4303.4,4303.3,1.1348]
[1757454546130,2.70281919,4303.4,4303.3,0.6797]
[1757454546726,2.47042919,4303.4,4303.3,0.6797]
[1757454547335,2.47042919,4303.4,4303.0,0.2717]
[1757454547534,1.544,4303.2,4303.1,0.6797]
[1757454547830,2.23742919,4303.2,4303.1,0.6797]
[1757454548135,1.11072919,4303.2,4303.1,1.5912]
[1757454548336,1.34372919,4303.2,4303.1,1.5912]
[1757454551938,1.11072919,4303.2,4303.1,1.5912]
[1757454552140,1.34372919,4303.2,4303.1,1.5912]
[1757454553642,0.78060511,4303.2,4303.1,1.5912]
[1757454554941,1.3439643,4303.2,4303.1,1.5912]
[1757454557146,1.7934643,4303.2,4303.1,1.5912]
[1757454557356,2.4721643,4303.2,4303.1,1.5912]
[1757454559444,2.4721643,4303.2,4303.1,1.1361]
[1757454559644,2.4721643,4303.2,4302.9,0.67298598]
[1757454559946,1.5681,4303.0,4302.9,0.67298598]
[1757454560149,1.5681,4303.0,4302.9,1.08808598]
[1757454561148,1.5681,4303.0,4302.9,1.51898598]
[1757454561348,0.8894,4303.0,4302.9,1.51898598]
[1757454561548,1.5681,4303.0,4302.9,1.51898598]
[1757454561845,1.5681,4303.0,4302.9,0.67298598]
[1757454562342,1.5681,4303.0,4302.9,1.08808598]
[1757454563750,1.69844198,4303.0,4302.9,1.51898598]
[1757454563943,1.01974198,4303.0,4302.9,1.51898598]
[1757454564336,1.69844198,4303.0,4302.9,1.51898598]
[1757454565040,2.26168587,4303.0,4302.9,1.08808598]
[1757454566642,2.26168587,4303.0,4302.9,0.67298598]
[1757454568651,2.26128372,4303.0,4302.9,0.67298598]
[1757454570351,1.69844198,4303.0,4302.9,0.67298598]
[1757454571851,1.69844198,4303.0,4302.9,1.08808598]
[1757454574952,1.69844198,4303.0,4302.9,0.67298598]
[1757454575954,1.69844198,4303.0,4302.9,1.08808598]